Cogmind - Beta 14 @@@ ROGUE MODE // 2024.11.22 @ 23:11:00 Player: akira Result: Destroyed by S-10 Pest with Light Assault Rifle Performance ------------- Evolutions (0) 0 Regions Visited (2) 400 Robots Destroyed (27) 135 Value Destroyed (773) 773 Prototype IDs (2) 40 Alien Tech Used (0) 0 Bonus (0) 0 TOTAL SCORE: 1348 Bonus ------- None Cogmind --------- Core Integrity 0/250 Matter 299/300 Energy 151/160 System Corruption 0% Temperature Cool (0) Movement Walking (120) Location -10/Mines Parts ------- > --- POWER (1) -------- Light Nuclear Core > --- PROPULSION (2) --- Aluminum Leg Aluminum Leg > --- UTILITY (2) ------ Small Storage Unit Signal Interpreter > --- WEAPON (2) ------- Small Laser Light Assault Rifle > --- INVENTORY (8) ---- Ion Engine Light Treads Light Treads Aluminum Leg Small Matter Pod (50) Terrain Scanner Datajack Peak State ------------ > --- POWER ------------ Light Nuclear Core > --- PROPULSION ------- Aluminum Leg Aluminum Leg > --- UTILITY ---------- Small Storage Unit Signal Interpreter > --- WEAPON ----------- Small Laser Light Assault Rifle > --- INVENTORY -------- Ion Engine Light Treads Light Treads Aluminum Leg Small Matter Pod Terrain Scanner Datajack [Rating: 9] Favorites ----------- Power Light Nuclear Core Engine Ion Engine Power Core Light Nuclear Core Propulsion Aluminum Leg Leg Aluminum Leg Utility Small Storage Unit Storage Small Storage Unit Processor Signal Interpreter Weapon Assault Rifle Energy Gun Small Laser Ballistic Gun Assault Rifle Build | -11 -10 -10 ------- Run | Yrd Mat Min Slots Evolved . | . . . Power . | . . . Propulsion . | . . . Utility . | . . . Weapon . | . . . Parts Attached 25 | 5 15 5 Power 5 | 1 3 1 Engine 3 | 1 2 . Core 2 | . 1 1 Reactor . | . . . Propulsion 13 | 2 9 2 Treads . | . . . Leg 13 | 2 9 2 Wheel . | . . . Hover . | . . . Flight . | . . . Utility 2 | 1 1 . Device . | . . . Storage 1 | 1 . . Processor 1 | . 1 . Hackware . | . . . Protection . | . . . Artifact . | . . . Weapon 5 | 1 2 2 Energy Gun 3 | . 2 1 Energy Cannon . | . . . Ballistic Gun 2 | 1 . 1 Ballistic Cannon . | . . . Launcher . | . . . Special Weapon . | . . . Impact Weapon . | . . . Slashing Weapon . | . . . Piercing Weapon . | . . . Special Melee Weapon . | . . . Unidentified Prototypes . | . . . Parts Lost 5 | . 3 2 Power 1 | . 1 . Propulsion 2 | . . 2 Utility . | . . . Weapon 2 | . 2 . Highest Loss Streak 2 | . 2 2 To Critical Strikes . | . . . Average Slot Usage (%) 85 | . 84 88 Engine 5 | . 3 11 Core 8 | . 9 2 Leg 27 | . 28 27 Storage 14 | . 14 14 Processor 13 | . 13 14 Energy Gun 4 | . 3 6 Ballistic Gun 10 | . 10 11 Peak Build Rating 9 | 5 8 9 Average Rating 7 | 3 7 6 On Entrance 3 | . 5 6 Naked Turns . | . . . Heaviest Build 12 | 10 12 12 Greatest Support 20 | 20 20 20 Greatest Overweight (x) . | . . . Average Overweight (x) . | . . . Largest Inventory Capacity 8 | 8 8 8 Average Capacity 7 | 6 8 8 Most Carried 8 | 7 8 8 Average Carried 7 | 4 7 7 Final Capacity 8 | 8 8 8 Final Carried 7 | 7 6 7 Class Distribution -------------------- 83% | Mutant 16% | Scavenger-Mutant Dominant Class ---------------- Mutant | -10/Materials Scavenger-Mutant | -10/Mines Resources | -11 -10 -10 ----------- Run | Yrd Mat Min Matter Collected 659 | 197 348 114 Remotely . | . . . Salvage Created 940 | . 783 157 Parts 54 | . 39 15 Haulers Intercepted . | . . . Recyclers Shooed . | . . . Parts Field Recycled . | . . . Retrieved Matter . | . . . Parts Self-Destructed . | . . . Prevented . | . . . Kills | -11 -10 -10 ------- Run | Yrd Mat Min Combat Hostiles Destroyed 23 | . 16 7 Guns 23 | . 16 7 Classes Destroyed 5 | . 4 1 Worker 1 | . 1 . Recycler 1 | . 1 . Watcher 2 | . 2 . Swarmer 5 | . . 5 Grunt 18 | . 16 2 Best Kill Streak 3 | . 3 3 Combat Bots Only 3 | . 3 3 Max Kills in Single Turn 3 | . 3 1 Gunslinging . | . . . Exploded . | . . . Melee . | . . . Uniques/NPCs Destroyed . | . . . Combat | -11 -10 -10 -------- Run | Yrd Mat Min Hostile Shots Fired 117 | . 78 39 Missed 33 | . 18 15 Damage Taken 1006 | . 746 260 Core 252 | . 181 71 Absorbed by Shields . | . . . Core Remaining (%) 100 | 100 . . Volleys Fired 108 | . 85 23 Largest 2 | . 1 2 Hottest 60 | . 40 60 Shots Fired 117 | . 85 32 Gun 117 | . 85 32 Cannon . | . . . Launcher . | . . . Special . | . . . Kinetic 70 | . 55 15 Thermal 27 | . 10 17 Explosive . | . . . Electromagnetic 20 | . 20 . Robot Hit Streak 18 | . 18 5 Robot Miss Streak 5 | . 5 2 Penetration Max . | . . . Secondary Targets . | . . . Shots Hit Robots 84 | . 65 19 Core Hits 43 | . 33 10 Critical Kills . | . . . Critical Parts Destroyed . | . . . Critical Strikes . | . . . Melee Attacks . | . . . Impact . | . . . Slashing . | . . . Piercing . | . . . Sneak Attacks . | . . . Combat Hostiles . | . . . Follow-up Attacks . | . . . Damage Inflicted 1241 | . 1042 199 Guns 1051 | . 852 199 Cannons . | . . . Explosions 190 | . 190 . Melee . | . . . Ramming . | . . . Kinetic 681 | . 601 80 Thermal 192 | . 73 119 Explosive 190 | . 190 . Electromagnetic 178 | . 178 . Impact . | . . . Slashing . | . . . Piercing . | . . . Highest Corruption . | . . . Average Corruption . | . . . Corruption Purged . | . . . Corruption Blocked . | . . . Overload Shots . | . . . Overflow Damage 47 | . 47 . Projectiles . | . . . Explosions 47 | . 47 . Melee . | . . . Knockbacks . | . . . Impact . | . . . Kinetic . | . . . Secondary . | . . . Self-Inflicted Damage . | . . . Shots . | . . . Rammed . | . . . Targets Rammed . | . . . Kicked . | . . . Crushed . | . . . Highest Temperature 128 | . 128 65 Average Temperature 36 | . 40 27 Received Heat Transfer 516 | . 417 99 Siege Activations . | . . . Robots Corrupted . | . . . Combat Hostiles . | . . . Parts Fried . | . . . Impact Corruptions . | . . . Robots Melted . | . . . Combat Hostiles . | . . . Parts Melted . | . . . Heat Transferred 400 | . 150 250 Parts Sabotaged . | . . . Parts Stolen . | . . . Parts Stripped . | . . . Power Chain Reactions . | . . . Alert | -11 -10 -10 ------- Run | Yrd Mat Min Peak Influence 322 | . 322 185 Initial 30 | . . 30 Average 98 | . 103 95 Maximum Alert Level 1 | . 1 . Low Security (%) 90 | 100 87 100 Level 1 9 | . 12 . Level 2 . | . . . Level 3 . | . . . Level 4 . | . . . Level 5 . | . . . High Security . | . . . Max Security . | . . . Squads Dispatched 6 | . 6 . Investigation 5 | . 5 . Extermination . | . . . Reinforcement 1 | . 1 . Assault . | . . . Garrison . | . . . Intercept . | . . . Searches Triggered . | . . . Construction Impeded . | . . . Haulers Reinforced . | . . . Active Scanning Responses . | . . . Cargo Convoy Interrupts . | . . . Stealth | -11 -10 -10 --------- Run | Yrd Mat Min Distress Signals 2 | . 2 . Communications Jammed . | . . . Distress Signals . | . . . Times Spotted 32 | . 23 9 Peak Tracking Total 3 | . 3 3 Tactical Retreats 1 | . . 1 Traps | -11 -10 -10 ------- Run | Yrd Mat Min Traps Triggered 3 | . 3 . Indirectly . | . . . Trap Hack Attempts . | . . . Triggered . | . . . Disarmed . | . . . Reprogrammed . | . . . Reused . | . . . Traps Extracted . | . . . Installed . | . . . Triggered . | . . . Machines | -11 -10 -10 ---------- Run | Yrd Mat Min Machines Disabled 2 | . 2 . Max in Single Turn 2 | . 2 . Machines Repaired . | . . . Machines Dismantled . | . . . Machines Sabotaged . | . . . Overloaded Fab Kills . | . . . Hacking | -11 -10 -10 --------- Run | Yrd Mat Min Machines Accessed 7 | . 7 . Terminals 7 | . 7 . Fabricators . | . . . Repair Stations . | . . . Recycling Units . | . . . Scanalyzers . | . . . Garrison Access . | . . . Total Hacks 19 | . 19 . Successful 11 | . 11 . Failed 8 | . 8 . Catastrophic 2 | . 2 . Database Lockouts . | . . . Manual 19 | . 19 . Terminals 19 | . 19 . Fabricators . | . . . Repair Stations . | . . . Recycling Units . | . . . Scanalyzers . | . . . Garrison Access . | . . . Terminal Hacks 11 | . 11 . Part Schematic 1 | . 1 . Robot Analysis 4 | . 4 . Prototype ID Bank 1 | . 1 . Alert Level 2 | . 2 . Dispatch Records 1 | . 1 . Investigation Status 1 | . 1 . Hauler Manifests 1 | . 1 . Fabricator Hacks . | . . . Repair Station Hacks . | . . . Recycling Unit Hacks . | . . . Scanalyzer . | . . . Garrison Access Hacks . | . . . Unauthorized Hacks . | . . . Terminals . | . . . Fabricators . | . . . Repair Stations . | . . . Recycling Units . | . . . Scanalyzers . | . . . Garrison Access . | . . . Data Cores Recovered . | . . . Used . | . . . Hacking Detections 6 | . 6 . Full Trace Events 5 | . 5 . Feedback Events . | . . . Feedback Blocked . | . . . Robot Schematics Acquired . | . . . Robots Built . | . . . Authchips . | . . . Time . | . . . Total Robot Build Rating . | . . . Part Schematics Acquired 1 | . 1 . Parts Built . | . . . Authchips . | . . . Time . | . . . Total Part Build Rating . | . . . Parts Repaired . | . . . Time . | . . . Parts Recycled . | . . . Recycled Matter . | . . . Retrieved Matter . | . . . Retrieved Components . | . . . Parts Scanalyzed . | . . . Part Schematics Acquired . | . . . Parts Damaged . | . . . Bothacking | -11 -10 -10 ------------ Run | Yrd Mat Min Used RIF Installer . | . . . Robots Hacked . | . . . Non-combat . | . . . Combat . | . . . Robot Hacks Applied . | . . . Relay Couplers Released . | . . . Fabnet Peak Effective % . | . . . Robots Rewired . | . . . Allies Hacked . | . . . Hacks Repelled . | . . . Allies | -11 -10 -10 -------- Run | Yrd Mat Min Total Allies . | . . . Largest Group . | . . . Highest-Rated Group . | . . . Highest-Rated Ally . | . . . Total Orders . | . . . Ally Attacks . | . . . Total Damage . | . . . Kills . | . . . Allies Corrupted . | . . . Allies Melted . | . . . Intel | -11 -10 -10 ------- Run | Yrd Mat Min Robot Analysis Total 4 | . 4 . Derelict Logs Recovered 1 | . . 1 Drone Launches . | . . . Drone Recoveries . | . . . Exploration | -11 -10 -10 ------------- Run | Yrd Mat Min Turns Passed 1925 | 61 1474 390 Spaces Moved 954 | 41 684 229 Core 3 | 3 . . Treads . | . . . Legs 951 | 38 684 229 Wheels . | . . . Hover . | . . . Flight . | . . . Fastest Speed 50 | 50 120 120 Average Speed 119 | 114 120 120 Slowest Speed 120 | 120 120 120 Overloaded Moves . | . . . Propulsion Burnouts . | . . . Robots Hopped . | . . . Cave-ins Triggered . | . . . Exploration Rate (%) 38 | 3 84 28 Regions Visited 2 Branch Regions 1 Pre-discovered Areas . | . . . Known Exits Taken 1 | . 1 . Unknown Exits Taken 1 | 1 . . Scrap Searched 1 | . . 1 Spaces Dug . | . . . Terrain Destroyed 19 | . 19 . Melee . | . . . Projectile . | . . . AOE 19 | . 19 . Terrain Rammed . | . . . Walls Destroyed . | . . . Machines Disabled . | . . . Actions | -11 -10 -10 --------- Run | Yrd Mat Min Total 1629 | 52 1260 317 Wait 512 | . 455 57 Move 952 | 40 683 229 Hop . | . . . Pick Up 15 | 7 6 2 Fast Attach 8 | 5 2 1 Attach 6 | . 3 3 Detach 2 | . 1 1 Swap 11 | . 10 1 Drop 15 | . 15 . Fire 108 | . 85 23 Melee . | . . . Ram . | . . . Kick . | . . . Crush . | . . . Escape Stasis . | . . . Rewire . | . . . Trap . | . . . Miscellaneous . | . . . Route ------- -11/Scrapyard -10/Materials (discovered 4 exits: *Mat x2 / *Min x2) -10/Mines (discovered 2 exits: *Mat x2) History --------- Turn | Location | Event 8 | -11/Scrapyard | Discovered new exit (range 15) 62 | -11/Scrapyard | Entered Materials 86 | -10/Materials | Discovered new exit (range 5) 90 | -10/Materials | Identified exit to Mines 307 | -10/Materials | Build established: Mutant 321 | -10/Materials | Discovered exit to Mines (range 14) 923 | -10/Materials | Discovered new exit (range 16) 939 | -10/Materials | Identified exit to Materials 1213 | -10/Materials | Discovered exit to Materials (range 16) 1315 | -10/Materials | Core integrity fell below 50% 1536 | -10/Materials | Entered Mines 1594 | -10/Mines | Core integrity fell below 20% 1799 | -10/Mines | Discovered exit to Materials (range 13) 1807 | -10/Mines | Learned Materials terminal intel 1907 | -10/Mines | Discovered exit to Materials (range 7) 1924 | -10/Mines | Build established: Scavenger-Mutant 1926 | -10/Mines | Destroyed by S-10 Pest with Light Assault Rifle Last Messages --------------- 01610_ R-06 Scavenger collects Lgt. Assault Rifle. 01610_ K-01 Serf collects debris. 01650_ R-06 Scavenger collects Flight Unit. 01659_ R-06 Scavenger collects Lgt. Ion Engine. 01661_ K-01 Serf collects debris. 01722_ T-07 Excavator is excavating. 01799_ EXIT=FOUND: MATERIALS 01807_ Acquired derelict log, extracted data. Data stored: Materials terminal intel. 01829_ Aluminum Leg destroyed. 01842_ G-34 Mercenary destroyed. 01854_ G-47 Trooper destroyed. 01860_ Acquired 42 matter. 01862_ Acquired Aluminum Leg. 01876_ K-01 Serf collects debris. 01889_ R-06 Scavenger collects Aluminum Leg. 01893_ R-06 Scavenger collects Sml. Laser. 01907_ EXIT=FOUND: MATERIALS 01911_ S-10 Pest destroyed. 01914_ Acquired 12 matter. Map ----- +----------------------------------------------------+ | ?????# ##### ##?# #??? | | ?????# #???## #??## ##??? | | ###### #????#### #???### ###???? | | #???????# #?????## ##?????? | | ########???????# ##?????#####??????? | | ???########????# ##???????????????? | | ???# ###### ##??????????????? | | ???# [% ##?????????????? | | ???# < ######% ##????????????? | | ???# #????# ##???????????? | | ???# #????# #???????????? | | ???########????# #??????????? | | ???????????????# ### #?????????? | | ???????????????# #??# #????????? | | ??????????????## #???## #????????? | | ?????????????## ##????# ##????????? | | ?????????????# ####??###?????????? | | ?????????????# ##?????????????? | | ?????????????## ##????????????? | | ??????????????# ##???????????? | | ??????????????# ########????? | | ??????????????## # """ #????? | | ???????????????## ## """ #????? | | ????????????????## ## """ #????? | | ??????????????#### ### #????? | | ??????????????# %###@ #????? | | ??????????????# ### [%=s #????? | | ??????????????#???####### < #????? | | ????????????????????????## #####????? | | ?????????????????????????? #????????? | | ?????????????????????????? #????????? | | ?????????????????????????? #????????? | | ?????????????????????????? #????????? | | ?????????????????????????? #????????? | | ??????????????????????????? ????????? | | ???????????????????????????#????????? | | ????????????????????????????????????? | | ????????????????????????????????????? | | ????????????????????????????????????? | | ????????????????????????????????????? | | ????????????????????????????????????? | | ????????????????????????????????????? | | ????????????????????????????????????? | | ????????????????????????????????????? | | ????????????????????????????????????? | | ????????????????????????????????????? | | ????????????????????????????????????? | | ????????????????????????????????????? | | ????????????????????????????????????? | | ????????????????????????????????????? | +----------------------------------------------------+ Best States ------------- Heat Dissipation 25 Energy Generation 14 Energy Capacity 250 Matter Stores 300 Matter Capacity 300 Sight Range 16 Terrain Scan Density 10 Evasion (%) 55 Item Schematics ----------------- Structural Scanner | -10/Materials | Hacked Robot Schematics ------------------ None Fabricated ------------ Nothing Alien Tech Used ----------------- None Achievements -------------- None Challenges ------------ None Game ------ Seed CompanionScanGenerator Manual? 0 Play Time 00:23:05 Cumulative 22.0 hours Start 2024.11.22 @ 22:49:41 End 2024.11.22 @ 23:11:00 Sessions 1 Manual Loads 0 Difficulty Rogue Special Mode None Game No. 36 Rogue 36 Adventurer 0 Explorer 0 Win Type - Total 0 Types 0/0/0/0/0/0/0/0/0 Lore% 6 Gallery% 18 Achievement% 19 Wizard Run 0 Options --------- Layout 1 ASCII 0 Keyboard 0 Movement Mouse Keybinds 0 Fullscreen 1 Font 16/SmallcapsGlow Map View 55x38 Zoom Use 46% Tactical HUD 1 Map Filters NONE Filters NONE Steam 1 RUN: e69b1cc5-150a-4b19-bba7-944e3300ff8f